bitfinex-derivatives/quotes_BTCF0:USTF0_20251125
["timestamp","ask_amount","ask_price","bid_price","bid_amount"]
[1764033441719,0.06120803,88186.0,88185.0,0.04426008]
[1764033443121,0.06120803,88186.0,88185.0,0.02207008]
[1764033443330,0.49120803,88186.0,88185.0,0.00017008]
[1764033443616,0.49120803,88186.0,88172.0,0.3608]
[1764033443617,0.04518,88173.0,88172.0,0.3608]
[1764033443823,0.33872333,88173.0,88172.0,0.3608]
[1764033444025,0.0113464,88164.0,88155.0,0.3608]
[1764033444230,0.05872543,88156.0,88155.0,0.40489]
[1764033444431,0.48872543,88156.0,88155.0,0.3608]
[1764033444725,0.04518,88154.0,88153.0,0.00013977]
[1764033444923,0.04737803,88154.0,88153.0,0.00013977]
[1764033445828,0.04737803,88154.0,88153.0,0.02203977]
[1764033446127,0.04637803,88154.0,88153.0,0.04422977]
[1764033448721,0.04737803,88154.0,88153.0,0.04422977]
[1764033449327,0.04637803,88154.0,88153.0,0.04422977]
[1764033449529,0.04737803,88154.0,88153.0,0.04422977]
[1764033450432,0.04637803,88154.0,88153.0,0.04422977]
[1764033450633,0.04737803,88154.0,88153.0,0.04422977]
[1764033452021,0.04637803,88154.0,88153.0,0.04422977]
[1764033452226,0.00319803,88154.0,88153.0,0.04422977]
[1764033452622,0.04837803,88154.0,88153.0,0.00013977]
[1764033452822,0.04837803,88154.0,88147.0,0.00017008]
[1764033452823,0.04518,88148.0,88147.0,0.00017008]
[1764033453027,0.59860653,88148.0,88147.0,0.00017008]
[1764033454035,0.83870823,88148.0,88147.0,0.00017008]
[1764033454236,0.59870823,88148.0,88147.0,0.00017008]
[1764033454428,0.84870823,88148.0,88147.0,0.00017008]
[1764033454625,0.0113502,88135.0,88134.0,0.3608]
[1764033454830,0.0588594,88135.0,88134.0,0.3608]
[1764033455231,0.0565312,88127.0,88121.0,0.3608]
[1764033455429,0.05872923,88127.0,88121.0,0.3608]
[1764033455632,0.41952923,88127.0,88112.0,0.3608]
[1764033455829,0.81965355,88127.0,88118.0,0.00017018]
[1764033456037,0.22662235,88127.0,88126.0,0.04437369]
[1764033456227,0.22662235,88127.0,88126.0,0.00028369]
[1764033456428,0.22662235,88127.0,88126.0,0.02218369]
[1764033457037,0.04750235,88127.0,88126.0,0.02218369]
[1764033457335,0.04750235,88127.0,88126.0,0.04437369]
[1764033457836,0.04750235,88127.0,88126.0,0.04537369]
[1764033458224,0.00232235,88127.0,88126.0,0.04537369]
[1764033459439,0.00232235,88127.0,88126.0,0.05672499]
[1764033459936,0.00012432,88127.0,88126.0,0.45672499]
[1764033460238,0.00017018,88135.0,88134.0,0.04409]
[1764033460433,0.00236821,88135.0,88134.0,0.04409]
[1764033460634,0.00236821,88135.0,88134.0,0.49409]
[1764033461136,0.00017018,88135.0,88134.0,0.49409]
[1764033462639,0.00017018,88135.0,88134.0,0.49509]
[1764033462950,0.3721477,88155.0,88154.0,0.04554]
[1764033463239,0.43347573,88155.0,88154.0,0.04554]
[1764033463432,0.0345598,88138.0,88137.0,0.05868]
[1764033463633,0.05905783,88138.0,88137.0,0.04554]
[1764033464439,0.0568602,88135.0,88134.0,0.04654]
[1764033464635,0.05905823,88135.0,88134.0,0.04654]
[1764033464838,0.05905823,88135.0,88134.0,0.04554]
[1764033465039,0.04551,88134.0,88133.0,0.3608]
[1764033465254,0.04770803,88134.0,88133.0,0.40634]
[1764033465550,0.02540803,88134.0,88133.0,0.40634]
[1764033465752,0.04770803,88134.0,88133.0,0.40634]
[1764033470552,0.00219803,88134.0,88133.0,0.40634]
[1764033470853,0.03675833,88134.0,88133.0,0.40634]
[1764033471053,0.05905833,88134.0,88133.0,0.40634]
[1764033472253,0.0568608,88130.0,88129.0,0.00017018]
[1764033472448,0.05905883,88130.0,88129.0,0.00017018]
[1764033472846,0.05905883,88130.0,88129.0,0.04571018]
[1764033474447,0.05905883,88130.0,88129.0,0.04671018]
[1764033475155,0.03675883,88130.0,88129.0,0.04671018]
[1764033475858,0.05905883,88130.0,88129.0,0.04671018]
[1764033476044,0.48435257,88130.0,88129.0,0.00099963]
[1764033476249,0.0557712,88127.0,88126.0,0.00028369]
[1764033476552,0.055773,88113.0,88102.0,0.3608]
[1764033476758,0.03562103,88113.0,88112.0,0.41788]
[1764033477258,0.02426803,88113.0,88112.0,0.41788]
[1764033477557,0.055774,88105.0,88104.0,0.04427018]
[1764033477759,0.05797203,88105.0,88104.0,0.04427018]
[1764033478055,0.00219803,88105.0,88104.0,0.04427018]
[1764033478258,0.00119803,88105.0,88104.0,0.43527018]
[1764033478559,0.00119803,88105.0,88104.0,0.05662428]
[1764033478763,0.00119803,88105.0,88104.0,0.49662428]
[1764033479052,0.00119803,88105.0,88104.0,0.04627018]
[1764033479053,0.05697203,88105.0,88104.0,0.04627018]
[1764033479962,0.05697203,88105.0,88104.0,0.04727018]
[1764033480552,0.05697203,88105.0,88090.0,0.21259098]
[1764033480553,0.0557758,88091.0,88090.0,0.00011672]
[1764033480748,0.08300575,88091.0,88090.0,0.00011672]
[1764033481258,0.35200575,88091.0,88090.0,0.00011672]
[1764033481560,0.0557763,88087.0,88086.0,2e-08]
[1764033481762,0.44380625,88087.0,88086.0,2e-08]
[1764033481962,0.68380625,88087.0,88086.0,2e-08]
[1764033482460,0.44393842,88087.0,88086.0,2e-08]
[1764033482850,0.0113569,88083.0,88082.0,0.00017028]
[1764033483051,0.0113569,88083.0,88082.0,8e-08]
[1764033483052,1.23863159,88083.0,88082.0,8e-08]
[1764033483356,1.26393084,88083.0,88052.0,0.3608]
[1764033483562,0.0334303,88056.0,88055.0,0.4059]
[1764033483858,0.01338515,88056.0,88055.0,0.4059]
[1764033484248,0.00202485,88056.0,88055.0,0.4059]
[1764033485761,0.00202485,88056.0,88055.0,0.4049]
[1764033485958,0.0557814,88048.0,88047.0,0.38279395]
[1764033486261,0.0577121,88048.0,88047.0,0.38279395]
[1764033486663,0.41860893,88048.0,88047.0,0.00011395]
[1764033486857,0.69860893,88048.0,88047.0,5e-08]
[1764033487162,0.04342,88047.0,88046.0,9e-08]
[1764033487463,0.4753507,88047.0,88046.0,9e-08]
[1764033487762,0.50050388,88047.0,88046.0,9e-08]
[1764033488161,0.49950388,88047.0,88046.0,9e-08]
[1764033488862,0.0543507,88047.0,88046.0,9e-08]
[1764033489055,0.23381389,88047.0,88046.0,0.04410009]
[1764033489456,0.23381389,88047.0,88046.0,0.02188009]
[1764033489663,0.19139389,88047.0,88046.0,9e-08]
[1764033489861,0.1912907,88047.0,88046.0,9e-08]
[1764033490062,0.4512907,88047.0,88046.0,9e-08]
[1764033490262,0.45238612,88047.0,88046.0,9e-08]
[1764033490559,0.0129307,88047.0,88046.0,9e-08]
[1764033490765,0.47244924,88047.0,88046.0,9e-08]
[1764033491160,0.03304924,88047.0,88046.0,9e-08]
[1764033491361,0.0539737,88030.0,88029.0,0.00011023]
[1764033491562,0.23540104,88030.0,88029.0,0.00011023]
[1764033491768,0.00202734,88030.0,88029.0,0.04541023]
[1764033492970,0.00202734,88030.0,88029.0,0.04641023]
[1764033495372,0.04463734,88030.0,88029.0,0.00211023]
[1764033495573,0.04463734,88030.0,88029.0,0.00111023]
[1764033495773,0.33463734,88030.0,88029.0,0.00111023]
[1764033496077,0.04463734,88030.0,88029.0,0.00111023]
[1764033496476,0.46463734,88030.0,88029.0,3e-08]
[1764033496975,0.04261,88007.0,88000.0,0.01298]
[1764033497278,0.0559074,88007.0,88000.0,0.01298]
[1764033497668,0.05605481,88007.0,88000.0,0.01298]
[1764033498170,0.00207811,88007.0,88006.0,0.04458407]
[1764033498888,0.00307811,88007.0,88006.0,0.04558407]
[1764033500376,0.01444481,88007.0,88006.0,0.04558407]
[1764033502768,0.00114741,88007.0,88006.0,0.42558407]
[1764033504872,0.00014741,88007.0,88006.0,0.42558407]
[1764033505071,0.00014741,88007.0,88006.0,0.04558407]
[1764033505374,0.00207811,88007.0,88006.0,0.06558407]
[1764033505670,0.00207811,88007.0,88006.0,0.04558407]
[1764033507777,0.00207811,88007.0,88006.0,0.46558407]
[1764033507978,0.00207811,88007.0,88006.0,0.04558407]
[1764033508575,0.00207811,88007.0,88006.0,0.47558407]
[1764033508771,0.00014741,88007.0,88006.0,0.47558407]
[1764033509666,0.01266,88012.0,88011.0,0.0556661]
[1764033509877,0.00255396,88012.0,88011.0,0.8574661]
[1764033510070,0.00017038,88015.0,88014.0,0.0556658]
[1764033510270,0.00017038,88015.0,88014.0,0.5066658]
[1764033510673,0.0113633,88034.0,88033.0,0.0443]
[1764033510981,0.01337829,88034.0,88033.0,0.0453]
[1764033511176,0.05598829,88034.0,88033.0,0.001]
[1764033511385,0.0539747,88022.0,88021.0,0.4051]
[1764033511580,0.05600039,88022.0,88021.0,0.4061]
[1764033511882,0.03468039,88022.0,88021.0,0.4061]
[1764033512974,0.05600039,88022.0,88021.0,0.0453]
[1764033513174,0.05700039,88022.0,88021.0,0.001]
[1764033513374,0.08234872,88022.0,88021.0,0.001]
[1764033513580,0.0539758,88014.0,88013.0,0.40527038]
[1764033513777,0.0559065,88014.0,88013.0,0.40627038]
[1764033515087,0.08229129,88014.0,88013.0,0.40627038]
[1764033515286,0.0029307,88014.0,88013.0,0.40627038]
[1764033516083,0.02832985,88014.0,88013.0,0.40627038]
[1764033519998,0.07093985,88014.0,88013.0,0.38338038]
[1764033520292,0.07093985,88014.0,88013.0,0.00117038]
[1764033520494,0.07103484,88014.0,88013.0,0.00017038]
[1764033520693,0.07103484,88014.0,88003.0,0.3608]
[1764033520694,0.0539767,88007.0,88006.0,0.04458407]
[1764033520884,0.08130655,88007.0,88006.0,0.04458407]
[1764033521190,0.02732985,88007.0,88006.0,0.04558407]
[1764033521386,0.0019307,88007.0,88006.0,0.04558407]
[1764033521590,0.0019307,88007.0,88006.0,0.43558407]
[1764033521786,0.0019307,88007.0,88006.0,0.04558407]
[1764033521990,9.499e-05,88014.0,88013.0,0.0566859]
[1764033522188,0.02739521,88014.0,88013.0,0.0576859]
[1764033522493,0.00202569,88014.0,88013.0,0.5176859]
[1764033522794,0.00254,88022.0,88021.0,0.0566849]
[1764033522995,0.0044707,88022.0,88021.0,0.04632]
[1764033523197,0.02708258,88022.0,88021.0,0.04632]
[1764033524189,0.02808258,88022.0,88021.0,0.04632]
[1764033525488,0.02908258,88022.0,88021.0,0.04632]
[1764033528889,0.07336258,88022.0,88021.0,0.04632]
[1764033529092,0.05778,88020.0,88019.0,0.3608]
[1764033529298,0.04428,88012.0,88011.0,0.02329]
[1764033529497,0.08272858,88012.0,88011.0,0.02429]
[1764033529796,0.08272858,88012.0,88011.0,0.001]
[1764033529997,0.07136258,88012.0,88011.0,0.04632]
[1764033531291,0.07136258,88012.0,88011.0,0.001]
[1764033531795,0.0556467,88007.0,88006.0,0.04560407]
[1764033531988,0.08272928,88007.0,88006.0,0.04560407]
[1764033532390,0.08272928,88007.0,88006.0,0.04660407]
[1764033532693,0.08272928,88007.0,88006.0,0.02457407]
[1764033533198,0.0462107,88007.0,88006.0,0.04660407]
[1764033533393,0.0711525,88007.0,88006.0,0.04660407]
[1764033533598,0.07115204,88007.0,88006.0,0.04660407]
[1764033534197,0.0462107,88007.0,88006.0,0.04660407]
[1764033534897,0.0462107,88007.0,88006.0,0.35660407]
[1764033535099,0.0462107,88007.0,88006.0,0.04660407]
[1764033536798,0.0462107,88007.0,88006.0,0.02457407]
[1764033537198,0.0462107,88007.0,88006.0,0.04764407]
[1764033537594,0.0019307,88007.0,88006.0,0.04764407]
[1764033537993,0.0457907,88007.0,88006.0,0.04764407]
[1764033540090,0.0457907,88007.0,88006.0,0.00028407]
[1764033540288,0.4065907,88007.0,88006.0,0.00028407]
[1764033540693,0.43152651,88007.0,88006.0,0.00028407]
[1764033541095,0.0552278,87998.0,87997.0,0.3608]
[1764033541294,0.0552293,87987.0,87986.0,0.04575]
[1764033541490,0.05716,87987.0,87986.0,0.04675]
[1764033541697,0.0241707,87987.0,87986.0,0.05675]
[1764033541896,0.0457907,87987.0,87986.0,0.05675]
[1764033542196,0.0019307,87987.0,87986.0,0.05675]
[1764033542396,0.0009307,87987.0,87986.0,0.05675]
[1764033542596,0.0009307,87987.0,87986.0,0.05775]
[1764033543602,0.3608,87998.0,87997.0,0.04575]
[1764033543793,0.0009307,87998.0,87997.0,0.46775]
[1764033545301,0.011367,88005.0,88004.0,0.057117]
[1764033545496,0.02241038,88006.0,88005.0,0.04575]
[1764033545698,0.02334108,88006.0,88005.0,0.04775]
[1764033546794,0.00110108,88006.0,88005.0,0.42775]
[1764033546995,0.00017038,88006.0,88005.0,0.42775]
[1764033547202,9.428e-05,88006.0,88005.0,0.42775]
[1764033547706,0.0113654,88017.0,88016.0,0.04575]
[1764033547903,0.0345361,88017.0,88016.0,0.45775]
[1764033548301,0.0122961,88017.0,88016.0,0.45775]
[1764033548918,0.0009307,88017.0,88016.0,0.45775]
[1764033549095,0.0019307,88017.0,88016.0,0.45775]
[1764033549297,0.0132961,88017.0,88016.0,0.45775]
[1764033551096,0.0019307,88017.0,88016.0,0.45775]
[1764033551301,0.0466207,88017.0,88016.0,0.45775]
[1764033551711,0.0019307,88017.0,88016.0,0.45775]
[1764033552504,0.0347861,88017.0,88016.0,0.45775]
[1764033552703,0.0572361,88017.0,88016.0,0.002]
[1764033552901,0.032857,88004.0,88003.0,0.04401]
[1764033553096,0.0122977,88004.0,88003.0,0.04601]
[1764033553303,0.001,88017.0,88016.0,0.04401]
[1764033553496,0.0019307,88017.0,88016.0,0.48601]
[1764033553705,0.0019307,88017.0,88016.0,0.04601]
[1764033554108,0.0019307,88017.0,88016.0,0.50601]
[1764033554407,0.0019307,88017.0,88016.0,0.04601]
[1764033555108,0.0132961,88017.0,88016.0,0.04601]
[1764033555309,0.0122961,88017.0,88016.0,0.04601]
[1764033555607,0.0337861,88017.0,88016.0,0.04601]
[1764033555803,0.0562361,88017.0,88016.0,0.04601]
[1764033556109,0.0572361,88017.0,88016.0,0.04601]
[1764033557010,0.0019307,88017.0,88016.0,0.04601]
[1764033557502,0.0458707,88017.0,88016.0,0.04601]
[1764033557809,0.0458707,88017.0,88016.0,0.02404]
[1764033558606,0.0458707,88017.0,88016.0,0.04601]
[1764033558806,0.4066707,88017.0,88016.0,0.04601]
[1764033559702,0.4066707,88017.0,88016.0,0.02404]
[1764033559905,0.4066707,88017.0,88016.0,0.04601]
[1764033560301,0.055307,88005.0,88004.0,0.04401]
[1764033560612,0.0337877,88005.0,88004.0,0.04601]
[1764033560811,0.0122977,88005.0,88004.0,0.04601]
[1764033561612,0.0009307,88005.0,88004.0,0.47601]
[1764033562302,0.40474,88017.0,88016.0,0.05713]
[1764033562610,0.0009307,88017.0,88016.0,0.05913]
[1764033562808,0.0009307,88017.0,88016.0,0.46913]
[1764033563006,0.3608,88027.0,88016.0,0.46913]
[1764033563007,0.3608,88027.0,88024.0,0.05713]
[1764033563207,0.00110118,88025.0,88024.0,0.48913]
[1764033563397,0.02259118,88025.0,88024.0,0.05913]
[1764033563597,0.04504118,88025.0,88024.0,0.002]
[1764033564011,0.04504118,88025.0,88024.0,0.04601]
[1764033564012,0.00110118,88025.0,88024.0,0.04601]
[1764033564204,0.02259118,88025.0,88024.0,0.04601]
[1764033564608,0.04504118,88025.0,88024.0,0.04601]
[1764033565115,0.0553054,88017.0,88016.0,0.04418048]
[1764033565410,0.0122961,88017.0,88016.0,0.48618048]
[1764033565812,0.0562361,88017.0,88016.0,0.04618048]
[1764033566009,0.0009307,88017.0,88016.0,0.04618048]
[1764033566212,0.0019307,88017.0,88016.0,0.49618048]
[1764033567817,0.0347861,88017.0,88016.0,0.49618048]
[1764033568007,0.0572361,88017.0,88016.0,0.04618048]
[1764033570309,0.0347861,88017.0,88016.0,0.04618048]
[1764033570504,0.0132961,88017.0,88016.0,0.04618048]
[1764033570711,0.0572361,88017.0,88016.0,0.04618048]
[1764033571718,0.0347861,88017.0,88016.0,0.05930048]
[1764033571918,0.0572361,88017.0,88016.0,0.05930048]
[1764033572615,0.0572361,88017.0,88016.0,0.00217048]
[1764033572920,0.0572361,88017.0,88016.0,0.04618048]
[1764033573910,0.0572361,88017.0,88016.0,0.02221048]
[1764033574216,0.0572361,88017.0,88016.0,0.00017048]
[1764033575017,0.0347861,88017.0,88016.0,0.05730048]
[1764033575213,0.0132961,88017.0,88016.0,0.05930048]
[1764033575408,0.0132961,88017.0,88016.0,0.04618048]
[1764033575409,0.0572361,88017.0,88016.0,0.04618048]
[1764033575813,0.0132961,88017.0,88016.0,0.05930048]
[1764033576119,0.0572361,88017.0,88016.0,0.04618048]
[1764033577108,0.0458707,88017.0,88016.0,0.04618048]
[1764033578123,0.0458707,88017.0,88016.0,0.05930048]
[1764033578417,0.0019307,88017.0,88016.0,0.48930048]
[1764033578816,0.0019307,88017.0,88016.0,0.05930048]
[1764033581518,0.0347861,88017.0,88016.0,0.05930048]
[1764033582020,0.0347861,88017.0,88016.0,0.44930048]
[1764033582224,0.0347861,88017.0,88016.0,0.05930048]
[1764033582419,0.0132961,88017.0,88016.0,0.05930048]
[1764033582626,0.0019307,88017.0,88016.0,0.07066598]
[1764033583824,0.0019307,88017.0,88016.0,0.47066598]
[1764033584027,0.0019307,88017.0,88016.0,0.55140383]
[1764033584028,0.001,88017.0,88016.0,0.55140383]
[1764033585027,0.00253,88019.0,88018.0,0.04418]
[1764033585324,0.04768,88019.0,88018.0,0.04618]
[1764033585621,0.0486107,88019.0,88018.0,0.04618]
[1764033586421,0.0496107,88019.0,88018.0,0.04618]
[1764033590427,0.0496107,88019.0,88018.0,0.0598]
[1764033590428,0.0044607,88019.0,88018.0,0.0598]
[1764033590723,0.0044607,88019.0,88018.0,0.4998]
[1764033591628,0.00353,88019.0,88018.0,0.4998]
[1764033592332,0.0496107,88019.0,88018.0,0.0237]
[1764033593026,0.0276107,88019.0,88018.0,0.04618]
[1764033593231,0.0276107,88019.0,88018.0,0.50618]
[1764033593232,0.0292381,88019.0,88018.0,0.50618]
[1764033593526,0.0743881,88019.0,88018.0,0.04618]
[1764033594729,0.0292381,88019.0,88018.0,0.49618]
[1764033594935,0.0283074,88019.0,88018.0,0.49618]
[1764033596534,0.0515281,88019.0,88018.0,0.04618]
[1764033597334,0.0292381,88019.0,88018.0,0.50618]
[1764033597737,0.0283074,88019.0,88018.0,0.46618]
[1764033597934,0.00017048,88025.0,88024.0,0.06031]
[1764033598137,0.00017048,88025.0,88024.0,0.06231]
[1764033598329,0.0249418,88025.0,88024.0,0.06231]
[1764033598526,0.0704825,88025.0,88024.0,0.02519]
[1764033599033,0.0704825,88025.0,88024.0,0.04835]
[1764033599234,0.0481625,88025.0,88024.0,0.06231]
[1764033599434,0.0724825,88025.0,88024.0,0.06231]
[1764033600137,0.0501625,88025.0,88024.0,0.06231]
[1764033600336,0.0724825,88025.0,88024.0,0.06231]
[1764033600641,0.0724825,88025.0,88024.0,0.002]
[1764033604542,0.0724825,88025.0,88024.0,0.04835]
[1764033605137,0.0724825,88025.0,88024.0,0.002]
[1764033607140,0.0724825,88025.0,88024.0,0.04835]
[1764033607644,0.0724825,88025.0,88024.0,0.06231]
[1764033608141,0.0501625,88025.0,88024.0,0.06231]
[1764033608340,0.02539118,88025.0,88024.0,0.06231]
[1764033609340,0.00217048,88025.0,88024.0,0.06231]
[1764033609537,0.00217048,88025.0,88024.0,0.49231]
[1764033610138,0.00217048,88025.0,88024.0,0.06231]
[1764033610541,0.00217048,88025.0,88024.0,0.43231]
[1764033610742,0.01389394,88046.0,88024.0,0.43231]
[1764033610743,0.04489394,88046.0,88045.0,0.04635]
[1764033610941,0.00028394,88046.0,88045.0,0.77915]
[1764033611347,0.02257394,88046.0,88045.0,0.40915]
[1764033611643,0.04672464,88046.0,88045.0,0.45835]
[1764033611950,0.00017037,88054.0,88053.0,0.0451]
[1764033612148,0.00017037,88054.0,88053.0,0.4192607]
[1764033612448,0.00017037,88054.0,88053.0,0.8392607]
[1764033612642,0.05797167,88054.0,88053.0,0.0471]
[1764033612842,0.05797167,88054.0,88053.0,0.4871]
[1764033613043,0.05797167,88054.0,88053.0,0.0471]
[1764033613244,0.05797167,88054.0,88053.0,0.5071]
[1764033613446,0.05897167,88054.0,88053.0,0.0471]
[1764033613648,0.05997167,88054.0,88053.0,0.0471]
[1764033614349,0.02539107,88054.0,88053.0,0.4271]
[1764033614746,0.04861107,88054.0,88053.0,0.4271]
[1764033614950,0.00310107,88054.0,88053.0,0.4271]
[1764033615251,0.05997167,88054.0,88053.0,0.4471]
[1764033615450,0.02539107,88054.0,88053.0,0.4471]
[1764033615651,0.03675167,88054.0,88053.0,0.4471]
[1764033615850,0.05997167,88054.0,88053.0,0.4471]
[1764033616150,0.05997167,88054.0,88053.0,0.0471]
[1764033616450,0.03675167,88054.0,88053.0,0.5071]
[1764033616952,0.03675167,88054.0,88053.0,0.0471]
[1764033617355,0.03675167,88054.0,88053.0,0.4571]
[1764033617653,0.00310107,88054.0,88053.0,0.4571]
[1764033619140,0.00217037,88054.0,88053.0,0.4571]
[1764033619852,0.04768037,88054.0,88053.0,0.0471]
[1764033620052,0.04768037,88054.0,88053.0,0.0871]
[1764033620448,0.02446037,88054.0,88053.0,0.4371]
[1764033620650,0.00217037,88054.0,88053.0,0.4371]
[1764033622152,0.01353097,88054.0,88053.0,0.4371]
[1764033622856,0.00217037,88054.0,88053.0,0.4371]
[1764033624868,0.372158,88074.0,88073.0,0.0451]
[1764033625054,0.0113567,88085.0,88082.0,0.0451]
[1764033625354,0.4072407,88083.0,88082.0,0.4171]
[1764033625553,0.4072407,88083.0,88082.0,0.0471]
[1764033625857,0.4072407,88083.0,88082.0,0.1871]
[1764033626058,0.3840207,88083.0,88082.0,0.1871]
[1764033626260,0.3617307,88083.0,88082.0,0.4671]
[1764033627254,0.00017037,88091.0,88082.0,0.4671]
[1764033627460,0.00017037,88091.0,88085.0,0.0451]
[1764033627655,0.00017037,88091.0,88085.0,0.8379]
[1764033627956,0.00017037,88091.0,88085.0,0.7979]
[1764033628159,0.00017037,88091.0,88090.0,0.0564559]
[1764033628456,3.7e-07,88091.0,88090.0,0.4784559]
[1764033628759,3.7e-07,88091.0,88090.0,0.8784559]
[1764033629152,3.7e-07,88091.0,88090.0,2.3784559]
[1764033629750,3.7e-07,88091.0,88090.0,2.1577759]
[1764033630350,3.7e-07,88091.0,88090.0,1.9671]
[1764033630549,3.7e-07,88091.0,88090.0,0.0471]
[1764033630956,3.7e-07,88091.0,88090.0,0.5071]
[1764033631352,0.00100037,88091.0,88090.0,0.5071]
[1764033631557,0.04651037,88091.0,88090.0,0.5071]
[1764033631956,0.04744107,88091.0,88090.0,0.0471]
[1764033632857,0.04744107,88091.0,88090.0,0.4271]
[1764033633359,0.00100037,88091.0,88090.0,0.4271]
[1764033634163,0.00100037,88091.0,88090.0,0.0471]
[1764033634365,0.00100037,88091.0,88090.0,0.5071]
[1764033636357,0.01235617,88091.0,88090.0,0.4971]
[1764033636759,0.01235617,88091.0,88090.0,0.0471]
[1764033637151,0.05879687,88091.0,88090.0,0.0471]
[1764033637565,0.05879687,88091.0,88090.0,0.002]
[1764033637764,0.05879687,88091.0,88090.0,0.02396]
[1764033637964,0.05879687,88091.0,88090.0,0.0471]
[1764033639360,0.04744107,88091.0,88090.0,0.0471]
[1764033639565,0.00193107,88091.0,88090.0,0.0471]
[1764033640561,0.04744107,88091.0,88090.0,0.0471]
[1764033640768,0.04744107,88091.0,88090.0,0.432]
[1764033641060,0.04744107,88091.0,88090.0,0.04767]
[1764033641475,0.04744107,88091.0,88090.0,0.47767]
[1764033641668,0.02422107,88091.0,88090.0,0.04767]
[1764033642074,0.02422107,88091.0,88090.0,0.44767]
[1764033643271,0.02422107,88091.0,88090.0,0.04767]
[1764033643569,0.04525107,88091.0,88090.0,0.47767]
[1764033643770,0.04525107,88091.0,88090.0,0.04767]
[1764033644167,0.04525107,88091.0,88090.0,0.002]
[1764033644367,0.04525107,88091.0,88090.0,0.04767]
[1764033647063,0.04525107,88091.0,88090.0,0.002]
[1764033649072,0.04525107,88091.0,88090.0,0.04767]
[1764033649374,0.04525107,88091.0,88090.0,0.002]
[1764033649764,0.04525107,88091.0,88090.0,0.04767]
[1764033650163,0.04525107,88091.0,88090.0,0.05767]
[1764033650472,0.04525107,88091.0,88090.0,0.04767]
[1764033651269,0.07007039,88091.0,88090.0,0.04767]
[1764033658674,0.0113578,88076.0,88075.0,0.3608]
[1764033658877,0.0564485,88076.0,88075.0,0.3628]
[1764033659376,0.08133777,88076.0,88075.0,0.3628]
[1764033659580,0.08133777,88076.0,88075.0,0.04611]
[1764033660272,0.04724997,88076.0,88075.0,0.48611]
[1764033660466,0.02581997,88076.0,88075.0,0.48611]
[1764033660676,0.05551617,88091.0,88090.0,0.04411]
[1764033660982,0.08134533,88091.0,88090.0,0.04611]
[1764033661366,0.06998953,88091.0,88090.0,0.04611]
[1764033661773,0.06998953,88091.0,88090.0,0.002]
[1764033662076,0.06998953,88091.0,88090.0,0.47611]
[1764033662281,0.06998953,88091.0,88090.0,0.04611]
[1764033662778,0.07098953,88091.0,88090.0,0.002]
[1764033663376,0.07098953,88091.0,88090.0,0.0249]
[1764033663577,0.07098953,88091.0,88090.0,0.04611]
[1764033667785,0.07098953,88091.0,88090.0,0.0249]
[1764033668484,0.0555165,88086.0,88085.0,0.3608]
[1764033668676,0.0555179,88075.0,88074.0,0.40508037]
[1764033668981,0.0223607,88075.0,88074.0,0.82028037]
[1764033669185,0.0223607,88075.0,88074.0,0.42028037]
[1764033669383,0.0450907,88075.0,88074.0,0.42028037]
[1764033669978,0.0009307,88075.0,88074.0,0.42028037]
[1764033671287,0.0436607,88075.0,88074.0,0.42028037]
[1764033671687,0.0223607,88075.0,88074.0,0.42028037]
[1764033673790,0.0436607,88075.0,88074.0,0.40708037]
[1764033675489,0.0436607,88075.0,88074.0,0.42026037]
[1764033675987,0.0436607,88075.0,88074.0,0.40708037]
[1764033676987,0.0436607,88075.0,88074.0,0.84708037]
[1764033677177,0.0436607,88075.0,88074.0,0.42026037]
[1764033678185,0.0223607,88075.0,88074.0,0.85026037]
[1764033678491,0.0436607,88075.0,88074.0,0.88026037]
[1764033678691,0.0436607,88075.0,88074.0,0.86026037]
[1764033678890,0.0436607,88075.0,88074.0,0.42026037]
[1764033681095,0.0436607,88075.0,88074.0,0.40708037]
[1764033681294,0.0436607,88075.0,88074.0,0.38587037]
[1764033681593,0.0436607,88075.0,88074.0,0.40705037]
[1764033681787,0.0436607,88075.0,88074.0,0.42023037]
[1764033682090,0.0223607,88075.0,88074.0,0.42023037]
[1764033682295,0.0436607,88075.0,88074.0,0.42023037]
[1764033684788,0.0436607,88075.0,88074.0,0.43158837]
[1764033684983,0.0436607,88075.0,88074.0,0.88158837]
[1764033685188,0.0009307,88075.0,88074.0,0.88158837]
[1764033686191,0.0113571,88081.0,88080.0,0.05158]
[1764033686394,0.0122878,88081.0,88080.0,0.05358]
[1764033686591,0.03719673,88081.0,88080.0,0.05358]
[1764033686796,0.08163673,88081.0,88080.0,0.04608]
[1764033686997,0.08163672,88081.0,88080.0,0.002]
[1764033688398,0.08163672,88081.0,88080.0,0.02349]
[1764033688595,0.08163672,88081.0,88080.0,0.04608]
[1764033690703,0.07027962,88081.0,88080.0,0.0574372]
[1764033690901,0.07027962,88081.0,88080.0,0.49608]
[1764033691201,0.07027962,88081.0,88080.0,0.04608]
[1764033692998,0.07027962,88081.0,88080.0,0.02349]
[1764033693298,0.0453707,88081.0,88080.0,0.04608]
[1764033694599,0.0009307,88081.0,88080.0,0.49926]
[1764033695103,0.0009307,88081.0,88080.0,0.50926]
[1764033695104,0.0240707,88081.0,88080.0,0.50926]
[1764033695805,0.0240707,88081.0,88080.0,0.05926]
[1764033695996,0.0240707,88081.0,88080.0,0.43926]
[1764033696299,0.0009307,88081.0,88080.0,0.4506172]
[1764033698609,0.0009307,88081.0,88080.0,0.43926]
[1764033699716,0.04444,88102.0,88088.0,0.0113561]
[1764033700008,0.02407107,88091.0,88090.0,0.40688]
[1764033700712,0.02407107,88091.0,88090.0,0.79688]
[1764033701114,0.00093107,88091.0,88090.0,0.79688]
[1764033701517,0.00093107,88091.0,88090.0,0.40688]
[1764033701720,0.02216107,88091.0,88090.0,0.40688]
[1764033702224,0.02216107,88091.0,88090.0,0.77688]
[1764033702724,0.04349107,88091.0,88090.0,0.77688]
[1764033702921,0.04349107,88091.0,88090.0,0.40688]
[1764033703311,0.04349107,88091.0,88090.0,0.83688]
[1764033703518,0.00093107,88091.0,88090.0,0.8182359]
[1764033703720,3.7e-07,88091.0,88090.0,0.7741559]
[1764033704020,0.02216107,88091.0,88090.0,0.53699]
[1764033704226,0.04349107,88091.0,88090.0,0.40699]
[1764033704424,0.04349107,88091.0,88090.0,0.51699]
[1764033704726,0.05484687,88091.0,88090.0,0.51699]
[1764033705316,0.05484687,88091.0,88090.0,0.40699]
[1764033705520,0.05484687,88091.0,88090.0,0.85699]
[1764033705918,0.05484687,88091.0,88090.0,0.51699]
[1764033707423,0.05484687,88091.0,88090.0,0.52699]
[1764033707822,0.03351687,88091.0,88090.0,0.52699]